fUSD/lending_fUSD_20240927
["ID","MTS","AMOUNT","RATE_DAILY","PERIOD"]
[339311306,1727445245140,-5000.0,0.00034,120]
[339311307,1727445245166,-358.384052,0.00034,30]
[339311308,1727445245190,-4524.51476489,0.00034103,60]
[339311309,1727445245216,-20159.0,0.000343,120]
[339311310,1727445245243,-5248.1,0.00034449,45]
[339311311,1727445245269,-5300.0,0.000345,120]
[339311312,1727445245296,-2500.0,0.00034543,31]
[339311313,1727445245322,-151.0,0.00034795,120]
[339311314,1727445245346,-1948.767047,0.000348,30]
[339311315,1727445245372,-472.39,0.00034922,90]
[339311316,1727445245397,-451.8779264,0.0003496,120]
[339311317,1727445245421,-3000.0,0.00035,30]
[339311318,1727445245446,-1208.1300012,0.00035,31]
[339311319,1727445245472,-2941.17813405,0.00035,60]
[339311320,1727445245496,-1204.8742376,0.00035,60]
[339311321,1727445245522,-2537.0,0.00035,120]
[339311322,1727445245546,-150.0,0.00035,30]
[339311323,1727445245570,-967.25670283,0.00035,120]
[339311324,1727445245594,-2598.356063,0.00035,30]
[339311325,1727445245618,-2765.0,0.00035,120]
[339311326,1727445245641,-1303.29131352,0.00035,30]
[339311327,1727445245665,-157.85031726,0.00035,120]
[339311328,1727445245689,-1810.1251205,0.00035,120]
[339311329,1727445245713,-35614.36,0.00035,30]
[339311330,1727445245739,-156.158339,0.00035,30]
[339311331,1727445245765,-156.158339,0.00035,30]
[339311332,1727445245789,-156.158339,0.00035,30]
[339311333,1727445245813,-15866.79641641,0.00035,30]
[339311334,1727445245835,-292.14031794,0.00035,120]
[339311335,1727445245860,-900.0,0.00035,36]
[339311336,1727445245884,-2286.68171725,0.00035,120]
[339311337,1727445245907,-1433.63907334,0.00035,120]
[339311338,1727445245933,-200.0,0.00035,120]
[339311339,1727445245959,-10495.4384659,0.00035,32]
[339311340,1727445245982,-5000.0,0.00035,120]
[339311341,1727445246005,-151.0,0.00035452,120]
[339311342,1727445246030,-3247.945079,0.000355,30]
[339311343,1727445246053,-3897.534095,0.000356,30]
[339311344,1727445246079,-4524.51476489,0.00035603,60]
[339311345,1727445246102,-200.0,0.00035616,60]
[339311346,1727445246126,-3897.534095,0.000357,30]
[339311347,1727445246149,-151.0,0.00035753,120]
[339311348,1727445246173,-4547.123111,0.000358,30]
[339311349,1727445246198,-34097.85678626,0.000358,60]
[339311350,1727445246224,-3897.534095,0.0003582,30]
[339311351,1727445246250,-366.1712367,0.0003588,120]
[339311352,1727445246281,-52940.1951918,0.000359,30]
[339311353,1727445246307,-3000.0,0.00036,120]
[339311354,1727445246332,-3000.0,0.00036,120]
[339311355,1727445246357,-1500.0,0.00036,30]
[339311356,1727445246381,-1000.0,0.00036,120]
[339311357,1727445246405,-2363.78,0.00036,120]
[339311358,1727445246430,-3678.99,0.00036,30]
[339311359,1727445246454,-900.0,0.00036,37]
[339311360,1727445246479,-2864.28770562,0.00036,120]
[339311361,1727445246504,-4000.23583769,0.00036,120]
[339311362,1727445246534,-250.0,0.00036,30]
[339311363,1727445246558,-1360.75170534,0.000361,120]
[339311364,1727445246583,-233.653,0.00036233,44]
[339311365,1727445246619,-150.092507,0.00036348,120]
[339311366,1727445246651,-150.092507,0.00036448,120]
[339311367,1727445246682,-151.0,0.00036712,120]
[339311368,1727445246715,-150.092507,0.00036748,120]
[339311369,1727445246747,-150.092507,0.00036848,120]
[339311370,1727445246783,-10417.8000138,0.0003688,30]
[339311371,1727445246813,-150.092507,0.00036948,120]
[339311372,1727445246845,-411.0,0.00036986,90]
[339311373,1727445246875,-3000.0,0.00036986,30]
[339311374,1727445246904,-3000.0,0.00036986,30]
[339311375,1727445246935,-3000.0,0.00036986,30]
[339311376,1727445246967,-3000.0,0.00036986,30]
[339311377,1727445247001,-2898.76782479,0.00036986,30]
[339311378,1727445247031,-5021.0,0.00037,120]
[339311379,1727445247060,-10000.0,0.00037,120]
[339311380,1727445247093,-200.0,0.00037,120]
[339311381,1727445247122,-900.0,0.00037,38]
[339311382,1727445247155,-1478.83643739,0.00037,90]
[339311383,1727445247183,-10000.0,0.00037,120]
[339311384,1727445247213,-1075.0,0.00037042,30]
[339311385,1727445247242,-150.092507,0.00037048,120]
[339311386,1727445247275,-4524.51476489,0.00037103,60]
[339311387,1727445247305,-150.092507,0.00037148,120]
[339311388,1727445247334,-150.092507,0.00037248,120]
[339311389,1727445247363,-150.092507,0.00037348,120]
[339311390,1727445247393,-468.28104244,0.000374,120]
[339311391,1727445247423,-546361.79381686,0.000374,30]
[339311392,1727445247454,-250000.0,0.0003744,30]
[339311393,1727445247485,-150.092507,0.00037448,120]
[339311394,1727445247518,-2000.0,0.00037473,31]
[339311395,1727445247549,-7071.240621,0.000375,30]
[339311396,1727445247580,-150.092507,0.00037548,120]
[339311397,1727445247610,-150.092507,0.00037648,120]
[339311398,1727445247640,-151.0,0.00037671,120]
[339311399,1727445247670,-150.092507,0.00037748,120]
[339311400,1727445247699,-856.49864494,0.00037774,30]
[339311401,1727445247729,-1136.99545794,0.00037776,30]
[339311402,1727445247758,-200.0,0.00037776,30]
[339311403,1727445247790,-57995.90506135,0.0003778,30]
[339311404,1727445247822,-275.72269257,0.00037791,30]
[339311405,1727445247854,-200.0,0.00037793,30]
[339311406,1727445247884,-4639.27959067,0.00037796,30]
[339311407,1727445247915,-4639.27959067,0.00037798,30]
[339311408,1727445247945,-1389.21131608,0.00037798,30]
[339311409,1727445247976,-181000.0,0.000378,120]
[339311410,1727445248005,-275.72269257,0.00037802,30]
[339311411,1727445248042,-1136.99545794,0.00037805,30]
[339311412,1727445248072,-1412.39247155,0.00037811,30]
[339311413,1727445248103,-200.0,0.00037828,30]
[339311414,1727445248133,-1136.99545794,0.0003783,30]
[339311415,1727445248163,-233.1994635,0.00037837,30]
[339311416,1727445248193,-70080.7269738,0.00037839,30]
[339311417,1727445248223,-57995.90506135,0.00037843,30]
[339311418,1727445248253,-150.092507,0.00037848,120]
[339311419,1727445248283,-1412.39247155,0.00037858,30]
[339311420,1727445248313,-200.0,0.00037861,30]
[339311421,1727445248344,-275.72269257,0.00037863,30]
[339311422,1727445248374,-233.1994635,0.00037867,30]
[339311423,1727445248404,-856.49864494,0.00037867,30]
[339311424,1727445248433,-11967.89534456,0.0003787,30]
[339311425,1727445248461,-5725.2,0.00037898,65]
[339311426,1727445248491,-3108.34,0.000379,60]
[339311427,1727445248519,-4639.27959067,0.00037901,30]
[339311428,1727445248548,-1412.39247155,0.00037905,30]
[339311429,1727445248579,-295363.35205776,0.00037912,30]
[339311430,1727445248607,-200.0,0.00037914,30]
[339311431,1727445248635,-200.0,0.0003792,120]
[339311432,1727445248665,-11967.89534456,0.00037924,30]
[339311433,1727445248697,-295363.35205776,0.0003793,30]
[339311434,1727445248728,-1389.21131608,0.00037932,30]
[339311435,1727445248758,-57995.90506135,0.00037936,30]
[339311436,1727445248789,-279.06628335,0.00037944,30]
[339311437,1727445248818,-150.092507,0.00037948,120]
[339311438,1727445248847,-1386.48787631,0.00037963,30]
[339311439,1727445248875,-295363.35205776,0.00037965,30]
[339311440,1727445248904,-856.49864494,0.00037967,30]
[339311441,1727445248933,-233.1994635,0.00037972,30]
[339311442,1727445248962,-279.06628335,0.00037978,30]
[339311443,1727445248990,-70080.7269738,0.00037979,30]
[339311444,1727445249020,-1389.21131608,0.0003798,30]
[339311445,1727445249048,-70080.7269738,0.0003798,30]
[339311446,1727445249077,-1386.48787631,0.0003798,30]
[339311447,1727445249104,-279.06628335,0.00037987,30]
[339311448,1727445249132,-1386.48787631,0.00037992,30]
[339311449,1727445249160,-11967.89534456,0.00037999,30]
[339311450,1727445249186,-618.76874913,0.00037999,120]
[339311451,1727445249217,-10000.0,0.00038,55]
[339311452,1727445249246,-10607.0,0.00038,45]
[339311453,1727445249277,-150.0,0.00038,120]
[339311454,1727445249306,-493.43326379,0.00038,120]
[339311455,1727445249332,-24473.88,0.00038,120]
[339311456,1727445249359,-19730.0,0.00038,60]
[339311457,1727445249385,-4161.0,0.00038,120]
[339311458,1727445249411,-3000.0,0.00038,30]
[339311459,1727445249436,-243.83244333,0.00038,30]
[339311460,1727445249461,-1000.0,0.00038,120]
[339311461,1727445249484,-6800.88914978,0.00038,30]
[339311462,1727445250043,-800.0,0.00038,120]
[339311463,1727445250088,-1000.0,0.00038,120]
[339311464,1727445250112,-15000.0,0.00038,45]
[339311465,1727445250137,-900.0,0.00038,39]
[339311466,1727445250161,-6342.50141391,0.00038,120]
[339311467,1727445250185,-2119.37630485,0.00038,120]
[339311468,1727445250210,-2461.09457207,0.00038,120]
[339311469,1727445250240,-39500.07835877,0.00038,30]
[339311470,1727445250264,-324.61,0.00038,120]
[339311471,1727445250291,-996.37,0.00038,120]
[339311472,1727445250317,-1004.3,0.00038,120]
[339311473,1727445250343,-308.06,0.00038,120]
[339311474,1727445250368,-311.67,0.00038,120]
[339311475,1727445250393,-955.17,0.00038,120]
[339311476,1727445250417,-250.0,0.00038,30]
[339311477,1727445250442,-150.092507,0.00038048,120]
[339311478,1727445250466,-571.0,0.000381,30]
[339311479,1727445250492,-150.092507,0.00038148,120]
[339311480,1727445250517,-4690.6955508,0.00038193,120]
[339311481,1727445250543,-150.092507,0.00038248,120]
[339311482,1727445250568,-150.092507,0.00038348,120]
[339311483,1727445250592,-200.0,0.00038356,60]
[339311484,1727445250616,-1000.0,0.00038356,36]
[339311485,1727445250640,-1037.97324699,0.000384,33]
[339311486,1727445250664,-1000.0,0.000384,120]
[339311487,1727445250688,-8824.79151583,0.000384,33]
[339311488,1727445250711,-175.36985368,0.000384,33]
[339311489,1727445250734,-167.01743985,0.000384,33]
[339311490,1727445250758,-170.62379008,0.000384,33]
[339311491,1727445250783,-174.74876053,0.000384,33]
[339311492,1727445250807,-178.54985946,0.000384,33]
[339311493,1727445250831,-250000.0,0.0003844,30]
[339311494,1727445250855,-150.092416,0.00038448,120]
[339311495,1727445250878,-702.68786278,0.000385,120]
[339311496,1727445250904,-150.092416,0.00038548,120]
[339311497,1727445250928,-4524.51476489,0.00038603,60]
[339311498,1727445250956,-4072.97491644,0.00038604,60]
[339311499,1727445250984,-151.0,0.0003863,120]
[339311500,1727445251010,-150.092416,0.00038648,120]
[339311501,1727445251038,-2681.51205036,0.00038721,90]
[339311502,1727445251064,-150.092416,0.00038748,120]
[339311503,1727445251088,-2490.74540626,0.000388,60]
[339311504,1727445251112,-150.092416,0.00038848,120]
[339311505,1727445251136,-4910.38301118,0.0003888,90]
[339311506,1727445251160,-416.81607325,0.00038889,120]
[339311507,1727445251184,-25000.0,0.000389,60]
[339311508,1727445251208,-16018.65098346,0.000389,120]
[339311509,1727445251236,-1126.9355421,0.000389,30]
[339311510,1727445251262,-150.092416,0.00038948,120]
[339311511,1727445251293,-1832.0,0.00039,120]
[339311512,1727445251318,-3180.53371066,0.00039,120]
[339311513,1727445251344,-500.0,0.00039,120]
[339311514,1727445251367,-1500.0,0.00039,30]
[339311515,1727445251391,-316.0,0.00039,120]
[339311516,1727445251415,-16714.68871041,0.00039,30]
[339311517,1727445251439,-160.0,0.00039,30]
[339311518,1727445251463,-194.93011201,0.00039,120]
[339311519,1727445251488,-15000.0,0.00039,45]
[339311520,1727445251513,-1000000.0,0.00039,120]
[339311521,1727445251543,-1182.60615108,0.00039,120]
[339311522,1727445251567,-5000.0,0.00039008,30]
[339311523,1727445251591,-5000.0,0.00039045,30]
[339311524,1727445251615,-150.092416,0.00039048,120]
[339311525,1727445251638,-1537.1,0.0003905,30]
[339311526,1727445251661,-25000.0,0.00039054,30]
[339311527,1727445251685,-5000.0,0.00039072,30]
[339311528,1727445251750,-5000.0,0.00039075,30]
[339311529,1727445251776,-1672.28,0.0003908,30]
[339311530,1727445251800,-150.092416,0.00039148,120]
[339311531,1727445251823,-2335.97,0.00039191,30]
[339311532,1727445251846,-4504.07,0.00039206,30]
[339311533,1727445251871,-1280.98082,0.00039208,30]
[339311534,1727445251894,-25000.0,0.0003924,50]
[339311535,1727445251919,-150.092416,0.00039248,120]
[339311536,1727445251945,-3943.5,0.00039272,30]
[339311537,1727445251973,-307.51,0.00039291,30]
[339311538,1727445251998,-6726.52,0.000393,30]
[339311539,1727445252026,-3294.41907034,0.00039302,120]
[339311540,1727445252051,-150.092416,0.00039348,120]
[339311541,1727445252076,-5000.0,0.00039364,30]
[339311542,1727445252102,-5000.0,0.00039372,30]
[339311543,1727445252126,-25000.0,0.00039376,30]
[339311544,1727445252151,-569.77861502,0.000394,30]
[339311545,1727445252175,-532681.67251187,0.000394,30]
[339311546,1727445252660,250.0,0.00010862,2]
[339311547,1727445271958,-291.65089875,0.00032876,120]
[339311548,1727445271991,-800.0,0.00035014,120]
[339311549,1727445272019,-1262172.59688973,0.000394,30]
[339311550,1727445272044,-1445.209609,0.000394,37]
[339311551,1727445272068,-179.09,0.00039407,30]
[339311552,1727445272093,-1280.98082,0.00039408,30]
[339311553,1727445272117,-5000.0,0.00039421,30]
[339311554,1727445272141,-1551.18,0.00039424,30]
[339311555,1727445272166,-250000.0,0.0003944,30]
[339311556,1727445272190,-150.092416,0.00039448,120]
[339311557,1727445272214,-519.53105261,0.0003945,120]
[339311558,1727445272448,-5000.0,0.0003947,30]
[339311559,1727445272473,-2796.98,0.00039487,30]
[339311560,1727445272496,-3469.15,0.00039497,30]
[339311561,1727445272522,-397.60162729,0.00039498,120]
[339311562,1727445272548,-9253.99537834,0.000395,120]
[339311563,1727445272572,-5000.0,0.000395,120]
[339311564,1727445272596,-631.75757268,0.000395,40]
[339311565,1727445272620,-5000.0,0.00039506,30]
[339311566,1727445272643,-4973.64,0.00039522,30]
[339311567,1727445272667,-782.21,0.00039549,30]
[339311568,1727445272691,-151.0,0.00039589,120]
[339311569,1727445272715,-5000.0,0.00039592,30]
[339311570,1727445272739,-5000.0,0.00039603,30]
[339311571,1727445272763,-1280.98082,0.00039608,30]
[339311572,1727445272787,-5000.0,0.00039631,30]
[339311573,1727445272814,-25000.0,0.00039644,30]
[339311574,1727445272839,-5000.0,0.00039651,30]
[339311575,1727445272863,-5000.0,0.00039681,30]
[339311576,1727445272887,-2371.54,0.00039684,30]
[339311577,1727445272910,-5000.0,0.00039684,30]
[339311578,1727445272934,-5000.0,0.00039691,30]
[339311579,1727445272958,-759.62359508,0.000397,120]
[339311580,1727445272982,-5000.0,0.00039747,30]
[339311581,1727445273006,-2097.15,0.00039779,30]
[339311582,1727445273031,-5000.0,0.00039793,30]
[339311583,1727445273056,-460.25033426,0.000398,120]
[339311584,1727445273082,-3748.12973049,0.000398,120]
[339311585,1727445273106,-1280.98082,0.00039808,30]
[339311586,1727445273130,-5000.0,0.0003982,90]
[339311587,1727445273155,-5000.0,0.00039828,30]
[339311588,1727445273179,-5000.0,0.00039848,30]
[339311589,1727445273205,-411.0,0.00039886,90]
[339311590,1727445273232,-25000.0,0.00039895,30]
[339311591,1727445273259,-3000.0,0.000399,90]
[339311592,1727445273283,-5285.45339235,0.000399,60]
[339311593,1727445273309,-10927.02682346,0.000399,120]
[339311594,1727445273333,-123632.26782598,0.000399,30]
[339311595,1727445273358,-81477.13957479,0.000399,120]
[339311596,1727445273383,-5000.0,0.00039936,30]
[339311597,1727445273408,-5000.0,0.00039945,30]
[339311598,1727445273433,-367.22,0.00039949,30]
[339311599,1727445273458,-1999.0,0.0003997,30]
[339311600,1727445273483,-374026.11792751,0.0003997,30]
[339311601,1727445273508,-70311.56520569,0.0003998,30]
[339311602,1727445273533,-411.0,0.00039986,120]
[339311603,1727445273559,-5000.0,0.00039996,30]
[339311604,1727445273585,-200.0,0.00039999,30]
[339311605,1727445273615,-50000.0,0.0004,30]
[339311606,1727445273644,-50000.0,0.0004,40]
[339311607,1727445273669,-1547717.53574821,0.0004,30]
[339311608,1727445273695,-320.0,0.0004,120]
[339311609,1727445273719,-100251.0,0.0004,30]
[339311610,1727445273744,-401.0,0.0004,120]
[339311611,1727445273770,-371.0,0.0004,120]
[339311612,1727445273798,-2000.0,0.0004,120]
[339311613,1727445273825,-477.12749073,0.0004,30]
[339311614,1727445273851,-439.88851242,0.0004,30]
[339311615,1727445273876,-1167.91461982,0.0004,120]
[339311616,1727445273901,-1050.70515649,0.0004,32]
[339311617,1727445273927,-1067.98096906,0.0004,120]
[339311618,1727445273952,-500.0,0.0004,120]
[339311619,1727445273977,-2948.74832024,0.0004,30]
[339311620,1727445274001,-2490.80121098,0.0004,120]
[339311621,1727445274027,-220390.24341169,0.0004,120]
[339311622,1727445274055,-3000.0,0.0004,120]
[339311623,1727445274082,-10107.90932338,0.0004,120]
[339311624,1727445274107,-318.0,0.0004,120]
[339311625,1727445274132,-3113.39531181,0.0004,60]
[339311626,1727445274157,-449.7001932,0.0004,120]
[339311627,1727445274183,-3538.03801225,0.0004,120]
[339311628,1727445274207,-413.0,0.0004,120]
[339311629,1727445274235,-150.03607246,0.0004,120]
[339311630,1727445274260,-5000.0,0.0004,120]
[339311631,1727445274287,-3913.0,0.0004,120]
[339311632,1727445274313,-164.29276448,0.0004,120]
[339311633,1727445274337,-304.0,0.0004,120]
[339311634,1727445274363,-5000.0,0.0004,30]
[339311635,1727445274388,-200.0,0.0004,120]
[339311636,1727445274413,-285.0,0.0004,120]
[339311637,1727445274439,-5023.83696091,0.0004,120]
[339311638,1727445274464,-1486.79146398,0.0004,30]
[339311639,1727445274490,-271.0,0.0004,120]
[339311640,1727445274515,-1091.0,0.0004,120]
[339311641,1727445274540,-305.0,0.0004,120]
[339311642,1727445274566,-383.0,0.0004,120]
[339311643,1727445274592,-134449.52288505,0.0004,30]
[339311644,1727445274618,-64169.04554355,0.0004,30]
[339311645,1727445274643,-30509.90273484,0.0004,30]
[339311646,1727445274668,-260.0,0.0004,120]
[339311647,1727445274693,-10000.0,0.0004,120]
[339311648,1727445274892,-10333.8,0.0004,120]
[339311649,1727445274919,-400.0,0.0004,60]
[339311650,1727445274944,-329.0,0.0004,120]
[339311651,1727445274969,-1750.0,0.0004,120]
[339311652,1727445274995,-351794.67098044,0.0004,120]
[339311653,1727445312600,159.12,9.589e-05,2]
[339311654,1727445388516,2275.62,0.00010858,2]
[339311655,1727445462276,1050.0,0.00011,2]
[339311656,1727445483860,376.62,0.00010959,2]
[339311657,1727445613069,1386.31,0.00010861,2]
[339311658,1727445666545,306.45,8.93e-05,2]
[339311659,1727445667931,251.93384156,0.00010807,2]
[339311660,1727445697351,2915.78629436,0.000111,2]
[339311661,1727445739840,1000.0,0.00010843,2]
[339311662,1727445758134,150.0,0.00011111,2]
[339311664,1727445778412,190.64,0.00010862,2]
[339311665,1727445786237,194.73818151,0.00015,30]
[339311666,1727445851872,159.12,9.589e-05,2]
[339311667,1727445923251,250.0,0.00010897,2]
[339311668,1727446031776,200.0,0.00011,4]
[339311669,1727446033946,500.0,0.000111,4]
[339311670,1727446110286,5968.1816,0.00011094,2]
[339311671,1727446128368,173.5464133,0.00011093,2]
[339311672,1727446158739,628.60390416,0.00011094,2]
[339311680,1727446181137,50850.7676874,0.00011094,2]
[339311681,1727446184559,250.0,0.00010959,2]
[339311682,1727446189137,1605.96726366,0.00011094,2]
[339311688,1727446222991,299.43,8.866e-05,2]
[339311694,1727446231795,-3108.901884,0.00011128,2]
[339311695,1727446231806,-299.43,0.00011129,2]
[339311696,1727446231815,-216.74872702,0.00011184,2]
[339311697,1727446231826,-151.83,0.00011184,2]
[339311698,1727446231836,-151.83,0.00011184,2]
[339311699,1727446231845,-300.0,0.00011192,2]
[339311700,1727446231856,-150.0,0.00011193,2]
[339311701,1727446231868,-500.0,0.00011193,2]
[339311702,1727446231877,-500.0,0.00011193,2]
[339311703,1727446231887,-500.0,0.00011193,2]
[339311704,1727446231896,-187.05701551,0.00011193,2]
[339311705,1727446231906,-500.0,0.00011193,2]
[339311706,1727446231915,-302.68723543,0.00011193,2]
[339311707,1727446231925,-500.0,0.00011193,2]
[339311708,1727446231935,-500.0,0.00011193,2]
[339311709,1727446231945,-500.0,0.00011193,2]
[339311710,1727446231954,-433.05859171,0.00011193,2]
[339311711,1727446231963,-500.0,0.00011193,2]
[339311712,1727446231972,-500.0,0.00011193,2]
[339311713,1727446231982,-250.0,0.00011193,2]
[339311714,1727446231991,-502.16234457,0.00011193,2]
[339311715,1727446232000,-463720.39276818,0.00011194,2]
[339311716,1727446232012,-5147.3222742,0.00011194,2]
[339311717,1727446232023,-544.02,0.00011194,2]
[339311718,1727446232034,-765.29022052,0.00011194,2]
[339311719,1727446232045,-5673.50863488,0.00011194,2]
[339311720,1727446232057,-603.03497768,0.00011194,2]
[339311721,1727446232068,-2135.8388,0.00011194,2]
[339311722,1727446232080,-10552.6900996,0.00011194,2]
[339311723,1727446232092,-980.23063339,0.00011194,2]
[339311724,1727446232103,-5599.02414876,0.00011194,2]
[339311725,1727446232115,-3576.97871244,0.00011194,2]
[339311726,1727446232127,-4477.92071747,0.00011194,2]
[339311727,1727446232139,-1023.36525247,0.00011194,2]
[339311728,1727446232150,-696.77431602,0.00011194,2]
[339311729,1727446232161,-315.40449296,0.00011194,2]
[339311730,1727446232172,-1083.94723982,0.00011194,2]
[339311731,1727446232213,-747.0,0.00011194,2]
[339311732,1727446232224,-8327.99998117,0.00011194,2]
[339311733,1727446232235,-98715.39999997,0.00011194,2]
[339311734,1727446232246,-300.75376989,0.00011194,2]
[339311735,1727446232257,-548.6778876,0.00011194,2]
[339311736,1727446232268,-1182.73708964,0.00011194,2]
[339311737,1727446232279,-728.60287716,0.00011194,2]
[339311738,1727446232290,-527981.49347122,0.00011194,2]
[339311739,1727446232301,-533.04,0.00011194,2]
[339311740,1727446232312,-590454.49145441,0.00011194,2]
[339311745,1727446238253,-74421.30648167,0.00011194,2]
[339311746,1727446238262,-4354027.61811399,0.00011194,2]
[339311897,1727446240099,-1815.36240692,0.00011194,2]
[339311900,1727446240111,-1741.05089454,0.00011194,2]
[339311902,1727446240122,-2804.97584126,0.00011194,2]
[339311904,1727446240133,-19832.05303841,0.00011194,2]
[339312173,1727446242941,-1985588.97003556,0.00011194,2]
[339312175,1727446242954,-471.44131326,0.00011194,2]
[339312178,1727446242979,-2754.31674355,0.00011194,2]
[339312181,1727446242991,-363.33683964,0.00011194,2]
[339312183,1727446243003,-4445.23740939,0.00011194,2]
[339312185,1727446243015,-4697.08922901,0.00011194,2]
[339312187,1727446243027,-2005.80185951,0.00011194,2]
[339312189,1727446243038,-485.29999995,0.00011194,2]
[339312191,1727446243050,-709.17,0.00011194,2]
[339312194,1727446243061,-908.00465528,0.00011194,2]
[339312196,1727446243073,-3674.2143007,0.00011194,2]
[339312198,1727446243086,-412.1753019,0.00011194,2]
[339312200,1727446243104,-671.32315737,0.00011194,2]
[339312202,1727446243117,-40007.47351251,0.00011194,2]
[339312204,1727446243129,-2136.17160078,0.00011194,2]
[339312207,1727446243141,-608.56557313,0.00011194,2]
[339312209,1727446243152,-636.87818,0.00011194,2]
[339312211,1727446243163,-607.00378439,0.00011194,2]
[339312214,1727446243185,-341.88491473,0.00011194,2]
[339312216,1727446243196,-465.11974755,0.00011194,2]
[339312218,1727446243208,-521.78325572,0.00011194,2]
[339312220,1727446243219,-936330.78714071,0.00011194,2]
[339312223,1727446243231,-1023.82317081,0.00011194,2]
[339312225,1727446243243,-534.08689453,0.00011194,2]
[339312227,1727446243255,-505.5664408,0.00011194,2]
[339312229,1727446243267,-827.30933768,0.00011194,2]
[339312230,1727446243285,-426974.91899872,0.00011194,2]
[339312231,1727446243297,-33499.91300064,0.00011194,2]
[339312232,1727446243309,-17459.92421963,0.00011194,2]
[339312233,1727446243326,-605.70812265,0.00011194,2]
[339312234,1727446243339,-1973.28541823,0.00011194,2]
[339312235,1727446243351,-305.20127118,0.00011194,2]
[339312236,1727446243362,-432.89653833,0.00011194,2]
[339312237,1727446243374,-1117.28317245,0.00011194,2]
[339312238,1727446243385,-4200.0,0.00011194,2]
[339312485,1727446245832,-1140.97488748,0.00011194,2]
[339312488,1727446245846,-513.27220001,0.00011194,2]
[339312490,1727446245858,-8843.92475302,0.00011194,2]
[339312492,1727446245874,-2461.2845883,0.00011194,2]
[339312495,1727446245886,-3213.00530478,0.00011194,2]
[339312497,1727446245897,-5771.89169257,0.00011194,2]
[339312499,1727446245908,-42662.56565596,0.00011194,2]
[339312501,1727446245920,-329.20700671,0.00011194,2]
[339312503,1727446245931,-2701.23101814,0.00011194,2]
[339312505,1727446245945,-5164.28147376,0.00011194,2]
[339312507,1727446245956,-14215.85805118,0.00011194,2]
[339312509,1727446245968,-1675.74849414,0.00011194,2]
[339312512,1727446245980,-189480.98509995,0.00011194,2]
[339312514,1727446245992,-773.20893732,0.00011194,2]
[339312516,1727446246009,-542.79318473,0.00011194,2]
[339312519,1727446246021,-42131.55046532,0.00011194,2]
[339312521,1727446246033,-2372.81520537,0.00011194,2]
[339312523,1727446246044,-357.56409185,0.00011194,2]
[339312524,1727446246056,-2034.76206701,0.00011194,2]
[339312525,1727446246068,-8694.57112734,0.00011194,2]
[339312526,1727446246080,-1373.16223695,0.00011194,2]
[339312527,1727446246106,-69307.81672762,0.00011194,2]
[339312528,1727446246117,-22579.57251968,0.00011194,2]
[339312529,1727446246129,-422.91126348,0.00011194,2]
[339312530,1727446246140,-547.44,0.00011194,2]
[339312532,1727446246151,-5942.42976688,0.00011194,2]
[339312534,1727446246164,-449.54078311,0.00011194,2]
[339312536,1727446246176,-5210.14308199,0.00011194,2]
[339312538,1727446246188,-442.82396974,0.00011194,2]
[339312540,1727446246199,-299.07844765,0.00011194,2]
[339312542,1727446246211,-1207.9555414,0.00011194,2]
[339312544,1727446246222,-70482.63596456,0.00011194,2]
[339312547,1727446246233,-8385.9918445,0.00011194,2]
[339312549,1727446246244,-4506.63722945,0.00011194,2]
[339312551,1727446246256,-16344.51668327,0.00011194,2]
[339312553,1727446246268,-1033.35696431,0.00011194,2]
[339312555,1727446246279,-544.14569313,0.00011194,2]
[339312557,1727446246290,-268.25,0.00011194,2]
[339312560,1727446246301,-3627.57220054,0.00011194,2]
[339312562,1727446246320,-9813.92730148,0.00011194,2]
[339312564,1727446246331,-405.8537147,0.00011194,2]
[339312567,1727446246350,-1744.32203037,0.00011194,2]